bitfinex-derivatives/quotes_BTCF0:USTF0_20250125
["timestamp","ask_amount","ask_price","bid_price","bid_amount"]
[1737826352651,0.15283738,104800.0,104790.0,0.83647788]
[1737826353145,0.15283738,104800.0,104790.0,0.75698855]
[1737826353751,0.15283738,104800.0,104790.0,0.98478185]
[1737826355346,0.18463738,104800.0,104790.0,0.98478185]
[1737826357457,0.18463738,104800.0,104790.0,0.75698855]
[1737826358259,0.18463738,104800.0,104790.0,0.72658855]
[1737826358652,0.26412671,104800.0,104790.0,0.71640198]
[1737826359060,0.26412671,104800.0,104790.0,0.68620198]
[1737826360359,0.26412671,104800.0,104790.0,0.68420198]
[1737826361266,0.18463738,104800.0,104790.0,0.68420198]
[1737826361467,0.18463738,104800.0,104790.0,0.513508]
[1737826362565,0.26412671,104800.0,104790.0,0.513508]
[1737826363868,0.18463738,104800.0,104790.0,0.513508]
[1737826365264,0.18463738,104800.0,104790.0,0.68420198]
[1737826367671,0.23681586,104800.0,104790.0,0.68420198]
[1737826369864,0.32265321,104800.0,104790.0,0.91199528]
[1737826371470,0.68345321,104800.0,104790.0,0.55119528]
[1737826372868,0.68345321,104800.0,104790.0,0.3805013]
[1737826374973,0.73116313,104800.0,104790.0,0.3805013]
[1737826377073,0.64532578,104800.0,104790.0,0.152708]
[1737826377274,0.64532578,104800.0,104780.0,1.08824617]
[1737826377764,0.20488648,104790.0,104780.0,1.03606769]
[1737826377966,0.23798648,104790.0,104780.0,1.03606769]
[1737826378361,0.23798648,104790.0,104780.0,1.02605193]
[1737826379673,0.26533722,104790.0,104780.0,1.02605193]
[1737826380261,0.26533722,104790.0,104780.0,1.02805193]
[1737826380469,0.26533722,104790.0,104780.0,0.66725193]
[1737826380669,0.62613722,104790.0,104780.0,0.51453493]
[1737826381175,0.546608,104790.0,104780.0,0.51453493]
[1737826381581,0.63242485,104790.0,104780.0,0.40092979]
[1737826382276,0.71195407,104790.0,104780.0,0.40092979]
[1737826383369,0.79148329,104790.0,104780.0,0.40092979]
[1737826383574,0.152723,104780.0,104770.0,0.28488501]
[1737826383769,0.26455222,104780.0,104770.0,0.28488501]
[1737826384776,0.26455222,104780.0,104770.0,0.28788501]
[1737826385076,0.26455222,104780.0,104770.0,0.00314338]
[1737826385769,0.62535222,104780.0,104770.0,0.00314338]
[1737826389182,0.76819566,104780.0,104770.0,0.00314338]
[1737826391181,0.77830291,104780.0,104770.0,0.00314338]
[1737826392478,0.63545947,104780.0,104770.0,0.00314338]
[1737826395683,0.7210545,104780.0,104770.0,0.00314338]
[1737826401691,0.74593464,104780.0,104770.0,0.00314338]
[1737826402594,0.86018919,104780.0,104770.0,0.00314338]
[1737826405986,0.97424267,104780.0,104770.0,0.00314338]
[1737826407591,0.92203799,104780.0,104770.0,0.00314338]
[1737826408494,0.97424267,104780.0,104770.0,0.00314338]
[1737826410589,0.92203799,104780.0,104770.0,0.00314338]
[1737826412692,0.92203799,104780.0,104770.0,0.04490877]
[1737826413088,0.92203799,104780.0,104770.0,0.00314338]
[1737826413289,0.75097837,104780.0,104770.0,0.04490877]
[1737826413488,0.75097837,104780.0,104770.0,0.00314338]
[1737826414596,0.75097837,104780.0,104770.0,0.04490877]
[1737826414797,0.75097837,104780.0,104770.0,0.00314338]
[1737826415700,0.77919455,104780.0,104770.0,0.00314338]
[1737826416090,0.83139923,104780.0,104770.0,0.00314338]
[1737826418698,0.77919455,104780.0,104770.0,0.00314338]
[1737826419098,0.83139923,104780.0,104770.0,0.00314338]
[1737826420096,0.77919455,104780.0,104770.0,0.00314338]
[1737826421206,0.83139923,104780.0,104770.0,0.00314338]
[1737826421796,0.77919455,104780.0,104770.0,0.00314338]
[1737826421996,0.83139923,104780.0,104770.0,0.00314338]
[1737826422700,0.77919455,104780.0,104770.0,0.00314338]
[1737826425007,0.83139923,104780.0,104770.0,0.00314338]
[1737826429106,0.9746155,104780.0,104770.0,0.00314338]
[1737826430201,0.92241082,104780.0,104770.0,0.00314338]
[1737826432603,0.77919455,104780.0,104770.0,0.00314338]
[1737826433309,0.83139923,104780.0,104770.0,0.00314338]
[1737826434510,0.77919455,104780.0,104770.0,0.00314338]
[1737826435610,0.83139923,104780.0,104770.0,0.00314338]
[1737826436209,0.77919455,104780.0,104770.0,0.00314338]
[1737826436410,0.83139923,104780.0,104770.0,0.00314338]
[1737826436603,0.77919455,104780.0,104770.0,0.00314338]
[1737826449420,0.17105962,104780.0,104770.0,0.56888606]
[1737826449721,0.17105962,104780.0,104770.0,0.60068606]
[1737826449918,0.31425703,104780.0,104770.0,0.82951028]
[1737826450822,0.51918471,104780.0,104770.0,0.7773056]
[1737826451222,0.51918471,104780.0,104770.0,0.4165056]
[1737826451922,0.51918471,104780.0,104770.0,0.7773056]
[1737826453217,0.51918471,104780.0,104770.0,0.82951028]
[1737826453418,0.31937992,104780.0,104770.0,0.7773056]
[1737826453725,0.4052191,104780.0,104770.0,0.7773056]
[1737826454722,0.4052191,104780.0,104770.0,0.82951028]
[1737826455124,0.4052191,104780.0,104770.0,0.7773056]
[1737826458019,0.29076686,104780.0,104770.0,0.7773056]
[1737826460932,0.29076686,104780.0,104770.0,0.4165056]
[1737826461123,0.29076686,104780.0,104770.0,0.7773056]
[1737826461925,0.32296686,104780.0,104770.0,0.7773056]
[1737826462434,0.23712768,104780.0,104770.0,0.4165056]
[1737826462623,0.23712768,104780.0,104770.0,0.7773056]
[1737826464131,0.184923,104780.0,104770.0,0.4165056]
[1737826464333,0.184923,104780.0,104770.0,0.7773056]
[1737826465431,0.27076218,104780.0,104770.0,0.7773056]
[1737826465632,0.23856218,104780.0,104770.0,0.7773056]
[1737826466941,0.23856218,104780.0,104770.0,0.3956056]
[1737826467125,0.08583918,104780.0,104770.0,0.60054828]
[1737826469834,0.08583918,104780.0,104770.0,0.64231348]
[1737826470035,0.08583918,104780.0,104770.0,0.67521348]
[1737826471127,0.08583918,104780.0,104770.0,0.63344828]
[1737826472036,0.29075586,104790.0,104770.0,1.0029211]
[1737826472230,0.20491668,104790.0,104780.0,0.513523]
[1737826472540,0.26831668,104790.0,104780.0,0.513523]
[1737826476438,0.26831668,104790.0,104780.0,0.152723]
[1737826476836,0.26831668,104790.0,104780.0,0.513523]
[1737826479542,0.26831668,104790.0,104780.0,0.52310731]
[1737826482234,0.46845387,104790.0,104780.0,0.52310731]
[1737826490046,0.38268079,104790.0,104780.0,0.52310731]
[1737826491344,0.38268079,104790.0,104780.0,0.16230731]
[1737826491952,0.38268079,104790.0,104780.0,0.52310731]
[1737826493049,0.38268079,104790.0,104780.0,0.16230731]
[1737826493242,0.38268079,104790.0,104780.0,0.52310731]
[1737826494257,0.38268079,104790.0,104780.0,0.513523]
[1737826496149,0.22996879,104790.0,104770.0,0.68920968]
[1737826496343,0.23792768,104780.0,104770.0,0.84194068]
[1737826496544,0.23792768,104780.0,104770.0,0.48114068]
[1737826497347,0.23792768,104780.0,104770.0,0.84194068]
[1737826499247,0.23792768,104780.0,104770.0,0.80904068]
[1737826500352,0.29013236,104780.0,104770.0,0.64653774]
[1737826500557,0.40449647,104780.0,104770.0,0.3608]
[1737826500951,0.35229179,104780.0,104770.0,0.3608]
[1737826501151,0.40449647,104780.0,104770.0,0.3608]
[1737826501651,0.40449647,104780.0,104770.0,0.513537]
[1737826502364,0.35229179,104780.0,104770.0,0.513537]
[1737826503254,0.35229179,104780.0,104770.0,0.152737]
[1737826504068,0.71309179,104780.0,104770.0,0.152737]
[1737826504246,0.35229179,104780.0,104770.0,0.32421319]
[1737826504454,0.40449647,104780.0,104770.0,0.32421319]
[1737826504651,0.35229179,104780.0,104770.0,0.32421319]
[1737826505050,0.40449647,104780.0,104770.0,0.32421319]
[1737826505253,0.76529647,104780.0,104770.0,0.32421319]
[1737826505554,0.40449647,104780.0,104770.0,0.32421319]
[1737826506356,0.76529647,104780.0,104770.0,0.17147619]
[1737826507966,0.75552861,104780.0,104760.0,0.77747306]
[1737826508163,0.20494268,104770.0,104760.0,0.72526838]
[1737826508555,0.20494268,104770.0,104760.0,0.77747306]
[1737826509959,0.20494268,104770.0,104760.0,0.72526838]
[1737826510161,0.20494268,104770.0,104760.0,0.77747306]
[1737826510356,0.20494268,104770.0,104760.0,0.72526838]
[1737826511060,0.20594268,104770.0,104760.0,0.72526838]
[1737826511457,0.2917136,104770.0,104760.0,0.72526838]
[1737826512059,0.2917136,104770.0,104760.0,0.77747306]
[1737826512260,0.2917136,104770.0,104760.0,0.36446838]
[1737826512564,0.2917136,104770.0,104760.0,0.72526838]
[1737826513667,0.2917136,104770.0,104760.0,0.36446838]
[1737826513861,0.2917136,104770.0,104760.0,0.72526838]
[1737826525278,0.2917136,104770.0,104760.0,0.77747306]
[1737826525774,0.2917136,104770.0,104760.0,0.72526838]
[1737826527175,0.40607771,104770.0,104760.0,0.72526838]
[1737826528680,0.40607771,104770.0,104760.0,0.53241957]
[1737826528978,0.88218239,104770.0,104760.0,0.17161957]
[1737826529179,0.82997771,104770.0,104760.0,0.17161957]
[1737826530680,0.82997771,104770.0,104760.0,0.22889575]
[1737826532277,0.78164907,104770.0,104740.0,0.35398403]
[1737826532476,0.20497168,104750.0,104740.0,0.50676503]
[1737826532673,0.20497168,104750.0,104740.0,0.35398403]
[1737826532882,0.26717168,104750.0,104740.0,0.35398403]
[1737826533082,0.62797168,104750.0,104740.0,0.35398403]
[1737826534284,0.68017636,104750.0,104740.0,0.3443172]
[1737826534485,0.75017636,104750.0,104740.0,0.3443172]
[1737826535194,0.95031139,104750.0,104740.0,0.17300492]
[1737826535787,0.95031139,104750.0,104740.0,0.17157301]
[1737826535986,0.95131139,104750.0,104740.0,0.17157301]
[1737826536588,0.96082524,104750.0,104740.0,0.17157301]
[1737826538496,0.96082524,104750.0,104730.0,0.00014338]
[1737826538497,0.80805824,104750.0,104730.0,0.00014338]
[1737826538689,0.64799036,104740.0,104730.0,0.00014338]
[1737826540293,0.70019504,104740.0,104730.0,0.00014338]
[1737826540795,0.15281,104720.0,104710.0,0.52323542]
[1737826541005,0.25721936,104720.0,104710.0,0.52323542]
[1737826541799,0.25721936,104720.0,104710.0,0.16243542]
[1737826542004,0.25721936,104720.0,104710.0,0.52323542]
[1737826542203,0.25821936,104720.0,104710.0,0.52323542]
[1737826542397,0.61901936,104720.0,104710.0,0.00961342]
[1737826542588,0.65021936,104720.0,104700.0,0.71116603]
[1737826542793,0.05220468,104710.0,104700.0,0.71116603]
[1737826543202,0.20502968,104710.0,104700.0,0.71116603]
[1737826543608,0.20502968,104710.0,104700.0,0.72085981]
[1737826543898,0.20502968,104710.0,104700.0,0.68815981]
[1737826544693,0.25723436,104710.0,104700.0,0.47202181]
[1737826544897,0.68133436,104710.0,104700.0,0.10152803]
[1737826545506,0.68233436,104710.0,104700.0,0.10152803]
[1737826545904,0.68233436,104710.0,104700.0,0.1000956]
[1737826546205,0.68133436,104710.0,104700.0,0.1000956]
[1737826548707,0.6909289,104710.0,104700.0,0.1000956]
[1737826549008,0.15284,104700.0,104680.0,0.60273621]
[1737826549196,0.05220468,104690.0,104680.0,0.25985092]
[1737826549403,0.20505868,104690.0,104680.0,0.22775092]
[1737826549700,0.20505868,104690.0,104680.0,0.58855092]
[1737826550810,0.20505868,104690.0,104680.0,0.22775092]
[1737826551009,0.20505868,104690.0,104680.0,0.58855092]
[1737826552808,0.20605868,104690.0,104680.0,0.58855092]
[1737826556603,0.05320468,104690.0,104680.0,0.6407556]
[1737826556804,0.001,104690.0,104680.0,0.69296028]
[1737826557009,0.00014338,104700.0,104690.0,0.152854]
[1737826557205,0.00014338,104700.0,104690.0,0.56585868]
[1737826557404,0.05234806,104700.0,104690.0,0.513654]
[1737826558105,0.10455274,104700.0,104690.0,0.513654]
[1737826558305,0.20518806,104700.0,104690.0,0.513654]
[1737826559411,0.25739274,104700.0,104690.0,0.513654]
[1737826559713,0.23264695,104700.0,104690.0,0.513654]
[1737826561105,0.07980695,104700.0,104690.0,0.513654]
[1737826561805,0.23264695,104700.0,104690.0,0.513654]
[1737826564603,0.15298338,104700.0,104690.0,0.513654]
[1737826566610,0.23264695,104700.0,104690.0,0.513654]
[1737826567222,0.152854,104690.0,104680.0,0.62025092]
[1737826567413,0.23251757,104690.0,104680.0,0.58855092]
[1737826567916,0.26551757,104690.0,104680.0,0.4258]
[1737826568119,0.152883,104670.0,104660.0,0.91728089]
[1737826568321,0.152883,104670.0,104660.0,0.62828212]
[1737826568322,0.23254657,104670.0,104660.0,0.62828212]
[1737826568514,0.26554657,104670.0,104660.0,0.62828212]
[1737826569220,0.62634657,104670.0,104660.0,0.62828212]
[1737826570106,0.62634657,104670.0,104660.0,0.64321834]
[1737826570717,0.70701014,104670.0,104660.0,0.64421834]
[1737826571120,0.70701014,104670.0,104660.0,0.03654227]
[1737826571923,0.70601014,104670.0,104660.0,0.03654227]
[1737826572513,0.82002712,104670.0,104660.0,0.01593622]
[1737826573322,0.82002712,104670.0,104660.0,0.01493622]
[1737826573511,0.82102712,104670.0,104660.0,0.01493622]
[1737826573712,0.70636512,104670.0,104630.0,0.3608]
[1737826573916,0.23259057,104640.0,104630.0,0.3608]
[1737826574423,0.07966357,104640.0,104620.0,0.606554]
[1737826574622,0.152942,104630.0,104620.0,0.606554]
[1737826574814,0.152942,104630.0,104620.0,0.4218]
[1737826576120,0.23260557,104630.0,104620.0,0.4218]
[1737826576816,0.23260557,104630.0,104620.0,0.061]
[1737826577329,0.23260557,104630.0,104620.0,0.4218]
[1737826578216,0.23260557,104630.0,104620.0,0.4228]
[1737826578817,0.23360557,104630.0,104620.0,0.4228]
[1737826580924,0.23360557,104630.0,104620.0,0.062]
[1737826582329,0.23360557,104630.0,104620.0,0.4228]
[1737826583126,0.23360557,104630.0,104620.0,0.062]
[1737826585126,0.153942,104630.0,104620.0,0.65541957]
[1737826585527,0.153942,104630.0,104620.0,0.575756]
[1737826586326,0.23360557,104630.0,104620.0,0.214956]
[1737826586525,0.23360557,104630.0,104620.0,0.07693983]
[1737826587827,0.23360557,104630.0,104620.0,0.43773983]
[1737826588029,0.153942,104630.0,104620.0,0.40723979]
[1737826588330,0.152942,104630.0,104620.0,0.40723979]
[1737826588541,0.23260557,104630.0,104620.0,0.04643986]
[1737826591245,0.23260557,104630.0,104620.0,0.04644025]
[1737826592152,0.152942,104630.0,104620.0,0.04644025]
[1737826593237,0.23260557,104630.0,104620.0,0.04644025]
[1737826593444,0.59340557,104630.0,104620.0,0.01594025]
[1737826593649,0.62610557,104630.0,104620.0,0.01594025]
[1737826594357,0.70576914,104630.0,104620.0,0.01594081]
[1737826594546,0.62610557,104630.0,104620.0,0.01594081]
[1737826595743,0.62610557,104630.0,104620.0,0.001]
[1737826596144,0.70576914,104630.0,104620.0,0.001]
[1737826596350,0.62610557,104630.0,104620.0,0.001]
[1737826597251,0.70576914,104630.0,104620.0,0.001]
[1737826597446,0.62610557,104630.0,104620.0,0.001]
[1737826597653,0.70576914,104630.0,104620.0,0.001]
[1737826598153,0.79117364,104630.0,104620.0,0.001]
[1737826598340,0.71151007,104630.0,104620.0,0.001]
[1737826601453,0.88307769,104630.0,104620.0,0.001]
[1737826602648,0.25697212,104630.0,104620.0,0.44146357]
[1737826602844,0.25697212,104630.0,104620.0,0.65541957]
[1737826603050,0.25697212,104630.0,104620.0,0.575756]
[1737826604251,0.11401698,104630.0,104620.0,0.575756]
[1737826605058,0.11401698,104630.0,104620.0,0.60871633]
[1737826605449,0.11401698,104630.0,104620.0,0.575756]
[1737826605852,0.11401698,104630.0,104620.0,0.65541957]
[1737826606350,0.11401698,104630.0,104620.0,0.68838963]
[1737826606761,0.31450131,104640.0,104630.0,0.152942]
[1737826606957,0.31450131,104640.0,104630.0,0.70150225]
[1737826607154,0.31450131,104640.0,104630.0,1.00150225]
[1737826607361,0.31450131,104640.0,104630.0,0.70150225]
[1737826607753,0.31450131,104640.0,104630.0,0.66853219]
[1737826607955,0.31450131,104640.0,104630.0,0.66953219]
[1737826608155,0.11426285,104640.0,104630.0,0.55841025]
[1737826608356,0.11426285,104640.0,104630.0,0.71135225]
[1737826610561,0.11426285,104640.0,104630.0,0.66953219]
[1737826610958,0.11426285,104640.0,104630.0,0.62770557]
[1737826611765,0.11426285,104640.0,104630.0,0.96953219]
[1737826611961,0.31464469,104650.0,104630.0,0.85442714]
[1737826612161,0.31464469,104650.0,104640.0,0.65609057]
[1737826612969,0.00014338,104650.0,104640.0,0.65609057]
[1737826613360,0.00014338,104650.0,104640.0,0.576427]
[1737826614171,0.00014338,104650.0,104640.0,0.215627]
[1737826614665,0.15305638,104650.0,104640.0,0.215627]
[1737826614964,0.23271995,104650.0,104640.0,0.152927]
[1737826615170,0.26361995,104650.0,104640.0,0.152927]
[1737826618976,0.152927,104640.0,104630.0,0.5142387]
[1737826619168,0.29319057,104640.0,104630.0,0.5142387]
[1737826619681,0.213527,104640.0,104630.0,0.5142387]
[1737826620581,0.213527,104640.0,104630.0,0.5152387]
[1737826620885,0.213527,104640.0,104630.0,0.1544387]
[1737826621176,0.29319057,104640.0,104630.0,0.1544387]
[1737826621879,0.34097344,104640.0,104630.0,0.1544387]
[1737826622177,0.70177344,104640.0,104630.0,0.1544387]
[1737826622580,0.62210987,104640.0,104630.0,0.1544387]
[1737826624875,0.70177344,104640.0,104630.0,0.1544387]
[1737826625075,0.34097344,104640.0,104630.0,0.1544387]
[1737826627082,0.26130987,104640.0,104630.0,0.1544387]
[1737826627885,0.34097344,104640.0,104630.0,0.1544387]
[1737826629080,0.26130987,104640.0,104630.0,0.1544387]
[1737826629280,0.34097344,104640.0,104630.0,0.1544387]
[1737826629475,0.26130987,104640.0,104630.0,0.1544387]
[1737826633484,0.34692216,104640.0,104630.0,0.1544387]
[1737826636793,0.34692216,104640.0,104630.0,0.23410227]
[1737826636794,0.16389516,104640.0,104630.0,0.23410227]
[1737826636996,0.13339516,104640.0,104630.0,0.62550227]
[1737826641387,0.04778287,104640.0,104630.0,0.85338637]
[1737826642094,0.08575567,104650.0,104640.0,0.152927]
[1737826642288,0.08575567,104650.0,104640.0,0.65489057]
[1737826643188,0.08575567,104650.0,104640.0,0.575227]
[1737826644393,0.08575567,104650.0,104640.0,0.544727]
[1737826644795,0.31833224,104650.0,104640.0,0.152927]
[1737826644993,0.35003224,104650.0,104640.0,0.152927]
[1737826645194,0.152927,104640.0,104630.0,0.7421228]
[1737826645492,0.29459057,104640.0,104630.0,0.7421228]
[1737826645691,0.29459057,104640.0,104630.0,1.14152883]
[1737826645892,0.29459057,104640.0,104630.0,0.78072883]
[1737826646490,0.29459057,104640.0,104630.0,0.78172883]
[1737826649902,0.29459057,104640.0,104630.0,0.1544387]
[1737826649903,0.38020286,104640.0,104630.0,0.1544387]
[1737826651490,0.46956145,104640.0,104630.0,0.0015027]
[1737826651693,0.38989788,104640.0,104630.0,0.0015027]
[1737826651900,0.83036145,104640.0,104630.0,0.0015027]
[1737826656208,0.91629533,104640.0,104630.0,0.0015027]
[1737826656504,0.76336833,104640.0,104610.0,0.15440457]
[1737826656704,0.23261957,104620.0,104610.0,0.15440457]
[1737826657101,0.32761957,104620.0,104610.0,0.15440457]
[1737826659099,0.41417475,104620.0,104610.0,0.15440457]
[1737826662009,0.42367245,104620.0,104610.0,0.15440457]
[1737826662399,0.08655518,104620.0,104610.0,0.23406814]
[1737826662704,0.08655518,104620.0,104610.0,0.62546814]
[1737826662902,0.08655518,104620.0,104610.0,0.65566814]
[1737826663301,0.08655518,104620.0,104610.0,0.57600457]
[1737826667509,0.001,104620.0,104610.0,0.57600457]
[1737826668612,0.001,104620.0,104610.0,0.65566814]
[1737826672631,0.001,104620.0,104610.0,0.58548593]
[1737826673725,0.001,104620.0,104610.0,0.55528593]
[1737826674122,0.001,104620.0,104610.0,0.54580457]
[1737826674626,0.001,104620.0,104610.0,0.94633255]
[1737826675933,0.23361957,104620.0,104610.0,0.91573255]
[1737826676135,0.26531957,104620.0,104610.0,0.91429898]
[1737826676438,0.32861957,104620.0,104610.0,0.55349898]
[1737826677333,0.68941957,104620.0,104610.0,0.55349898]
[1737826678021,0.32861957,104620.0,104610.0,0.91429898]
[1737826678225,0.001,104620.0,104610.0,0.91429898]
[1737826678532,0.08569856,104630.0,104610.0,0.95185512]
[1737826678727,0.11431086,104630.0,104620.0,0.59342057]
[1737826679035,0.11431086,104630.0,104620.0,0.62602057]
[1737826679230,0.00014338,104630.0,104620.0,0.62602057]
[1737826679431,0.00014338,104630.0,104620.0,0.546357]
[1737826680030,0.07980695,104630.0,104620.0,0.546357]
[1737826680830,0.07980695,104630.0,104620.0,0.186557]
[1737826681130,0.23274895,104630.0,104620.0,0.547357]
[1737826681331,0.26364895,104630.0,104620.0,0.514757]
[1737826681727,0.26364895,104630.0,104620.0,0.153957]
[1737826681927,0.26364895,104630.0,104620.0,0.514757]
[1737826684735,0.26364895,104630.0,104620.0,0.153957]
[1737826684932,0.26364895,104630.0,104620.0,0.514757]
[1737826685740,0.26364895,104630.0,104620.0,0.153957]
[1737826685932,0.26364895,104630.0,104620.0,0.514757]
[1737826687142,0.26364895,104630.0,104620.0,1.0300768]
[1737826689444,0.26364895,104630.0,104620.0,0.6692768]
[1737826689737,0.18398538,104630.0,104620.0,1.0300768]
[1737826689942,0.26364895,104630.0,104620.0,1.0300768]
[1737826691441,0.00014338,104630.0,104620.0,1.10974037]
[1737826691641,0.08591669,104630.0,104620.0,0.99518971]
[1737826691844,0.08591669,104630.0,104620.0,0.98122614]
[1737826695144,0.00014338,104630.0,104620.0,0.80948802]
[1737826695447,0.00014338,104630.0,104620.0,0.88915159]
[1737826696346,0.00014338,104630.0,104620.0,0.93097537]
[1737826697048,0.08577331,104640.0,104630.0,0.152942]
[1737826697249,0.08577331,104640.0,104630.0,0.62490557]
[1737826698239,0.08577331,104640.0,104630.0,0.545242]
[1737826698441,0.08577331,104640.0,104630.0,0.546242]
[1737826699556,0.30223169,104650.0,104640.0,0.152927]
[1737826699753,0.30223169,104650.0,104640.0,0.513727]
[1737826707863,0.38189526,104650.0,104640.0,0.513727]
[1737826708663,0.30223169,104650.0,104640.0,0.513727]
[1737826710662,0.49625968,104650.0,104640.0,0.68533384]
[1737826711065,0.85705968,104650.0,104640.0,0.17160684]
[1737826711263,0.31450216,104660.0,104640.0,0.69173398]
[1737826711465,0.31450216,104660.0,104650.0,0.513713]
[1737826711662,0.46740016,104660.0,104650.0,0.513713]
[1737826711959,0.54706373,104660.0,104650.0,0.513713]
[1737826712165,0.46740016,104660.0,104650.0,0.513713]
[1737826712365,0.46840016,104660.0,104650.0,0.513713]
[1737826713065,0.46740016,104660.0,104650.0,0.513713]
[1737826713263,0.46840016,104660.0,104650.0,0.152913]
[1737826713463,0.46840016,104660.0,104650.0,0.513713]
[1737826714763,0.47810244,104660.0,104650.0,0.152913]
[1737826716068,0.47810244,104660.0,104650.0,0.32451984]
[1737826716069,0.16360028,104660.0,104650.0,0.32451984]
[1737826717172,0.153898,104660.0,104650.0,0.37683832]
[1737826717365,0.153898,104660.0,104650.0,0.32451984]
[1737826726175,0.514698,104660.0,104650.0,0.17160684]
[1737826726479,0.59440471,104660.0,104650.0,0.17160684]
[1737826727876,0.23360471,104660.0,104650.0,0.17160684]
[1737826729275,0.59440471,104660.0,104650.0,0.17160684]
[1737826729777,0.59340471,104660.0,104650.0,0.17160684]
[1737826731482,0.513698,104660.0,104650.0,0.17160684]
[1737826731983,0.59340471,104660.0,104650.0,0.17160684]
[1737826732187,0.59340471,104660.0,104640.0,1.02918818]
[1737826732188,0.152913,104650.0,104640.0,0.91450624]
[1737826733075,0.185413,104650.0,104640.0,0.91450624]
[1737826735086,0.185413,104650.0,104640.0,0.91550624]
[1737826735678,0.32848201,104650.0,104640.0,0.68647522]
[1737826736276,0.32848201,104650.0,104640.0,0.32567522]
[1737826736483,0.32848201,104650.0,104640.0,0.68647522]
[1737826738680,0.3808053,104650.0,104640.0,0.68647522]
[1737826738881,0.32848201,104650.0,104640.0,0.68647522]
[1737826739782,0.69876868,104650.0,104640.0,0.32567522]
[1737826739983,0.60802296,104650.0,104640.0,0.17275022]
[1737826740688,0.64122296,104650.0,104640.0,0.17275022]
[1737826741382,0.67132296,104650.0,104640.0,0.17275022]
[1737826742280,0.61899967,104650.0,104640.0,0.32567722]
[1737826742785,0.67132296,104650.0,104640.0,0.32567722]
[1737826742986,0.16239967,104650.0,104640.0,0.68647722]
[1737826743188,0.21472296,104650.0,104640.0,0.68647722]
[1737826743486,0.16239967,104650.0,104640.0,0.68647722]
[1737826743877,0.16239967,104650.0,104640.0,0.51487038]
[1737826743878,0.30546868,104650.0,104640.0,0.51487038]
[1737826748789,0.16239967,104650.0,104640.0,0.91550824]
[1737826749496,0.16239967,104650.0,104640.0,0.55470824]
[1737826749686,0.16239967,104650.0,104640.0,0.91550824]
[1737826752297,0.19459967,104650.0,104640.0,0.91550824]
[1737826753498,0.67541564,104660.0,104640.0,0.81490453]
[1737826753699,0.82832164,104660.0,104650.0,0.152913]
[1737826753891,0.88064493,104660.0,104650.0,0.152913]
[1737826755799,0.51984493,104660.0,104650.0,0.152913]
[1737826756011,0.52956628,104660.0,104650.0,0.513713]
[1737826759011,0.58188957,104660.0,104650.0,0.513713]
[1737826759202,0.52956628,104660.0,104650.0,0.513713]
[1737826760307,0.35801965,104660.0,104650.0,0.91435086]
[1737826763305,0.21495064,104660.0,104650.0,0.68531984]
[1737826765619,0.152906,104660.0,104650.0,0.73764313]
[1737826765913,0.152906,104660.0,104650.0,0.68531984]
[1737826766113,0.20522929,104660.0,104650.0,0.68531984]
[1737826768813,0.152906,104660.0,104650.0,0.68531984]
[1737826770209,0.20522929,104660.0,104650.0,0.68531984]
[1737826771407,0.20522929,104660.0,104650.0,0.53240684]
[1737826771713,0.20522929,104660.0,104650.0,0.17160684]
[1737826771714,0.56602929,104660.0,104650.0,0.17160684]
[1737826772119,0.61835258,104660.0,104650.0,0.17160684]
[1737826772313,0.56602929,104660.0,104650.0,0.17160684]
[1737826772919,0.8234709,104660.0,104650.0,0.17160684]
[1737826773119,0.87579419,104660.0,104650.0,0.17160684]
[1737826776820,0.152913,104650.0,104640.0,0.76158124]
[1737826777018,0.23603629,104650.0,104640.0,0.76158124]
[1737826777220,0.29983629,104650.0,104640.0,0.76158124]
[1737826779019,0.29983629,104650.0,104640.0,0.76258124]
[1737826780622,0.41429048,104650.0,104640.0,0.76258124]
[1737826783325,0.77509048,104650.0,104640.0,0.40178124]
[1737826784125,0.41429048,104650.0,104640.0,0.76258124]
[1737826785022,0.42369947,104650.0,104640.0,0.76258124]
[1737826787027,0.42369947,104650.0,104640.0,0.40178124]
[1737826787229,0.47147777,104650.0,104640.0,0.76258124]
[1737826787531,0.61454678,104650.0,104640.0,0.76258124]
[1737826788831,0.4582145,104650.0,104640.0,0.81490453]
[1737826789028,0.4582145,104650.0,104640.0,1.05155482]
[1737826789229,0.4582145,104650.0,104640.0,0.99923153]
[1737826790929,0.0477783,104650.0,104640.0,0.82762469]
[1737826793041,0.0477783,104650.0,104640.0,0.86944213]
[1737826793231,0.0477783,104650.0,104640.0,0.91092936]
[1737826793431,0.0477783,104650.0,104640.0,0.86944213]
[1737826793737,0.0477783,104650.0,104640.0,0.91092999]
[1737826793938,0.0477783,104650.0,104640.0,1.23683948]
[1737826794836,0.0477783,104650.0,104640.0,1.24663352]
[1737826795939,0.0477783,104650.0,104640.0,1.60743352]
[1737826796336,0.0477783,104650.0,104640.0,1.65975681]
[1737826796536,0.0477783,104650.0,104640.0,1.60743352]
[1737826797239,0.0477783,104650.0,104640.0,1.65975681]
[1737826797440,0.0477783,104650.0,104640.0,1.95098006]
[1737826797743,0.0477783,104650.0,104640.0,1.9094922]
[1737826797944,0.0477783,104650.0,104640.0,1.96181549]
[1737826798530,0.0477783,104650.0,104640.0,1.95086944]
[1737826800145,0.0477783,104650.0,104640.0,2.00319273]
[1737826800738,0.0477783,104650.0,104640.0,1.96181549]
[1737826801040,0.0477783,104650.0,104640.0,1.95086736]
[1737826802242,0.0477783,104650.0,104640.0,2.00319065]
[1737826802439,0.0477783,104650.0,104640.0,1.95086736]
[1737826803537,0.0477783,104650.0,104640.0,2.00319065]
[1737826805348,0.0477783,104650.0,104640.0,1.96181377]
[1737826806039,0.0477783,104650.0,104640.0,1.91999805]
[1737826806749,0.0477783,104650.0,104640.0,1.76707105]
[1737826807448,0.21129757,104670.0,104640.0,1.80888641]
[1737826807638,0.21129757,104670.0,104660.0,0.77392329]
[1737826808151,0.17939757,104670.0,104660.0,0.77392329]
[1737826808347,0.14739757,104670.0,104660.0,0.77392329]
[1737826808548,0.14839757,104670.0,104660.0,0.77392329]
[1737826809551,0.20072086,104670.0,104660.0,0.7216]
[1737826809752,0.26492086,104670.0,104660.0,0.7216]
[1737826809949,0.15046667,104670.0,104660.0,0.7216]
[1737826810653,0.14946667,104670.0,104660.0,0.7216]
[1737826810856,0.15046667,104670.0,104660.0,0.7216]
[1737826812555,0.19823584,104670.0,104660.0,0.7216]
[1737826813956,0.19823584,104670.0,104660.0,1.12189637]
[1737826816054,0.19823584,104670.0,104660.0,0.76109637]
[1737826816952,0.24600501,104670.0,104660.0,0.76109637]
[1737826817349,0.6591283,104670.0,104660.0,0.40029637]
[1737826817559,0.60680501,104670.0,104660.0,0.40029637]
[1737826822753,0.86432821,104670.0,104650.0,0.76109637]
[1737826822962,0.05232329,104660.0,104650.0,0.76109637]
[1737826825759,0.10464658,104660.0,104650.0,0.76109637]
[1737826825959,0.05232329,104660.0,104650.0,0.76109637]